[Event "NJSK 2021 Jeugd B"]
[Site "Almelo, Netherlands"]
[Date "2021.08.05"]
[Round "5.4"]
[White "Groen, Jari"]
[Black "Aarts, Joaquin"]
[Result "1-0"]
[TimeControl "90min/40moves + 30min + 30sec/move"]
[WhiteElo "1423"]
[BlackElo "1736"]

1. e4 {[%clk 01:30:54]} {[%emt 00:00:04]} c5 {[%clk 01:30:54]} {[%emt
00:00:07]} 2. Nf3 {[%clk 01:31:10]} {[%emt 00:00:13]} d6 {[%clk 01:31:20]}
{[%emt 00:00:05]} 3. d4 {[%clk 01:31:31]} {[%emt 00:00:10]} cxd4 {[%clk
01:31:45]} {[%emt 00:00:05]} 4. Nxd4 {[%clk 01:31:51]} {[%emt 00:00:09]} Nf6
{[%clk 01:32:10]} {[%emt 00:00:05]} 5. Nc3 {[%clk 01:31:54]} {[%emt 00:00:27]}
a6 {[%clk 01:32:33]} {[%emt 00:00:08]} 6. Bg5 {[%clk 01:31:44]} {[%emt
00:00:39]} e5 {[%clk 01:29:31]} {[%emt 00:03:32]} 7. Nf5 {[%clk 01:29:46]}
{[%emt 00:02:28]} Bxf5 {[%clk 01:25:20]} {[%emt 00:04:42]} 8. exf5 {[%clk
01:29:18]} {[%emt 00:00:57]} Be7 {[%clk 01:25:17]} {[%emt 00:00:34]} 9. Bxf6
{[%clk 01:24:30]} {[%emt 00:05:17]} Bxf6 {[%clk 01:25:10]} {[%emt 00:00:37]} 10.
Bc4 {[%clk 01:22:54]} {[%emt 00:02:06]} Qc7 {[%clk 01:21:04]} {[%emt 00:04:36]}
11. Ne4 {[%clk 01:18:26]} {[%emt 00:04:58]} Be7 {[%clk 01:20:02]} {[%emt
00:01:32]} 12. Qg4 {[%clk 01:01:35]} {[%emt 00:17:21]} Qc6 {[%clk 00:42:08]}
{[%emt 00:38:24]} 13. Rd1 {[%clk 00:49:56]} {[%emt 00:12:09]} Nd7 {[%clk
00:35:05]} {[%emt 00:07:33]} 14. Bd5 {[%clk 00:42:32]} {[%emt 00:07:54]} Qb6
{[%clk 00:18:07]} {[%emt 00:17:28]} 15. Qxg7 {[%clk 00:37:14]} {[%emt
00:05:48]} O-O-O {[%clk 00:12:12]} {[%emt 00:06:24]} 16. f6 {[%clk 00:33:07]}
{[%emt 00:04:38]} Rhg8 {[%clk 00:10:50]} {[%emt 00:01:52]} 17. Qxf7 {[%clk
00:28:18]} {[%emt 00:05:18]} Bxf6 {[%clk 00:11:01]} {[%emt 00:00:19]} 18. Nxf6
{[%clk 00:26:44]} {[%emt 00:02:05]} Nxf6 {[%clk 00:10:15]} {[%emt 00:01:17]} 19.
Qxf6 {[%clk 00:25:28]} {[%emt 00:01:45]} Rdf8 {[%clk 00:09:55]} {[%emt
00:00:50]} 20. Qe6+ {[%clk 00:23:53]} {[%emt 00:02:05]} Kb8 {[%clk 00:08:53]}
{[%emt 00:01:33]} 21. O-O {[%clk 00:21:42]} {[%emt 00:02:40]} Rg6 {[%clk
00:06:57]} {[%emt 00:02:27]} 22. Qh3 {[%clk 00:20:35]} {[%emt 00:01:36]} Rgf6
{[%clk 00:06:23]} {[%emt 00:01:05]} 23. Qe3 {[%clk 00:19:57]} {[%emt 00:01:07]}
Qc7 {[%emt 00:06:23]} 24. c4 {[%clk 00:14:26]} Rf4 {[%clk 00:06:22]} {[%emt
00:00:39]} 25. g3 {[%clk 00:12:28]} {[%emt 00:02:28]} R4f6 {[%clk 00:06:23]}
{[%emt 00:00:30]} 26. Rd3 {[%clk 00:11:56]} {[%emt 00:01:01]} Qg7 {[%clk
00:06:24]} {[%emt 00:00:29]} 27. Rb3 {[%clk 00:11:38]} {[%emt 00:00:48]} 1-0

[Event "NJSK 2021 Jeugd B"]
[Site "Almelo, Netherlands"]
[Date "2021.08.05"]
[Round "5.5"]
[White "Boeren, Jurriaan"]
[Black "Shadrin, Mitia"]
[Result "1/2-1/2"]
[TimeControl "90min/40moves + 30min + 30sec/move"]
[WhiteElo "1614"]
[BlackElo "1698"]

1. e4 {[%clk 01:30:58]} {[%emt 00:00:02]} c5 {[%clk 01:30:57]} {[%emt
00:00:03]} 2. Nf3 {[%clk 01:31:22]} {[%emt 00:00:06]} g6 {[%clk 01:31:25]}
{[%emt 00:00:02]} 3. d4 {[%clk 01:31:47]} {[%emt 00:00:06]} cxd4 {[%clk
01:31:52]} {[%emt 00:00:02]} 4. Nxd4 {[%clk 01:32:10]} {[%emt 00:00:07]} Nc6
{[%emt 00:00:05]} 5. c4 {[%clk 01:32:36]} {[%emt 00:00:03]} Nf6 {[%clk
01:32:39]} {[%emt 00:00:09]} 6. Nc3 {[%clk 01:33:00]} {[%emt 00:00:05]} Nxd4
{[%clk 01:33:05]} {[%emt 00:00:05]} 7. Qxd4 {[%clk 01:33:24]} {[%emt 00:00:06]}
d6 {[%clk 01:33:30]} {[%emt 00:00:05]} 8. c5 {[%clk 01:33:49]} {[%emt
00:00:05]} Bg7 {[%clk 01:23:48]} {[%emt 00:10:12]} 9. Bb5+ {[%clk 01:34:05]}
{[%emt 00:00:14]} Bd7 {[%clk 01:23:40]} {[%emt 00:00:38]} 10. Bxd7+ {[%clk
01:34:32]} {[%emt 00:00:03]} Qxd7 {[%clk 01:23:59]} {[%emt 00:00:11]} 11. cxd6
{[%clk 01:34:43]} {[%emt 00:00:19]} Qxd6 {[%clk 01:16:24]} {[%emt 00:08:05]} 12.
Qxd6 {[%clk 01:34:18]} {[%emt 00:00:55]} exd6 {[%clk 01:16:49]} {[%emt
00:00:05]} 13. Bf4 {[%clk 01:28:52]} {[%emt 00:05:54]} Ke7 {[%clk 01:15:43]}
{[%emt 00:01:38]} 14. f3 {[%clk 01:24:12]} {[%emt 00:05:11]} a6 {[%clk
01:14:53]} {[%emt 00:01:19]} 15. Ke2 {[%clk 01:18:29]} {[%emt 00:06:12]} Rhd8
{[%clk 01:14:07]} {[%emt 00:01:17]} 16. Rhd1 {[%clk 01:17:46]} {[%emt
00:01:13]} Rac8 {[%clk 01:12:53]} {[%emt 00:01:42]} 17. Rac1 {[%clk 01:12:38]}
{[%emt 00:05:40]} b5 {[%clk 01:12:17]} {[%emt 00:01:06]} 18. g4 {[%clk
01:02:48]} {[%emt 00:10:20]} Ke6 {[%clk 01:09:54]} {[%emt 00:02:53]} 19. a3
{[%clk 00:56:27]} {[%emt 00:06:51]} Rc5 {[%clk 01:03:31]} {[%emt 00:06:52]} 20.
Be3 {[%clk 00:44:54]} {[%emt 00:12:04]} Rc4 {[%clk 01:02:40]} {[%emt 00:01:20]}
21. b3 {[%clk 00:44:35]} {[%emt 00:00:50]} Rxc3 {[%clk 01:01:00]} {[%emt
00:02:10]} 22. Rxc3 {[%clk 00:44:53]} {[%emt 00:00:11]} Nxe4 {[%clk 01:01:24]}
{[%emt 00:00:07]} 23. Rc6 {[%clk 00:43:11]} {[%emt 00:02:13]} Nc3+ {[%clk
01:01:40]} {[%emt 00:00:13]} 24. Kd2 {[%clk 00:43:20]} {[%emt 00:00:21]} Nxd1
{[%clk 01:02:04]} {[%emt 00:00:06]} 25. Kxd1 {[%clk 00:43:46]} {[%emt
00:00:04]} Ra8 {[%clk 01:02:11]} {[%emt 00:00:23]} 26. Bf4 {[%clk 00:38:52]}
{[%emt 00:05:23]} Be5 {[%clk 01:01:48]} {[%emt 00:00:53]} 27. Bxe5 {[%clk
00:39:20]} {[%emt 00:00:03]} Kxe5 {[%clk 01:02:10]} {[%emt 00:00:07]} 28. Ke2
{[%clk 00:38:09]} {[%emt 00:01:41]} Ra7 {[%clk 01:02:25]} {[%emt 00:00:16]} 29.
b4 {[%clk 00:37:30]} {[%emt 00:01:09]} Kd5 {[%clk 01:00:41]} {[%emt 00:02:14]}
30. Rb6 {[%clk 00:35:58]} {[%emt 00:02:02]} f5 {[%clk 00:56:06]} {[%emt
00:05:05]} 1/2-1/2

[Event "NJSK 2021 Jeugd B"]
[Site "Almelo, Netherlands"]
[Date "2021.08.05"]
[Round "5.6"]
[White "Van Kuijk, Vadim"]
[Black "Zubair, Saad"]
[Result "1-0"]
[TimeControl "90min/40moves + 30min + 30sec/move"]
[WhiteElo "1722"]
[BlackElo "1645"]

1. e4 {[%clk 01:30:33]} {[%emt 00:00:25]} c5 {[%clk 01:30:58]} {[%emt
00:00:04]} 2. Nf3 {[%clk 01:30:57]} {[%emt 00:00:06]} e6 {[%clk 01:31:21]}
{[%emt 00:00:07]} 3. d4 {[%clk 01:31:11]} {[%emt 00:00:15]} cxd4 {[%clk
01:30:01]} {[%emt 00:01:50]} 4. Nxd4 {[%clk 01:31:03]} {[%emt 00:00:38]} f5
{[%clk 01:26:53]} {[%emt 00:03:39]} 5. exf5 {[%clk 01:19:07]} {[%emt 00:12:25]}
exf5 {[%clk 01:02:52]} {[%emt 00:24:32]} 6. Qf3 {[%clk 01:06:49]} {[%emt
00:12:47]} Nf6 {[%clk 00:50:45]} {[%emt 00:12:38]} 7. Nxf5 {[%clk 00:54:05]}
{[%emt 00:13:13]} Kf7 {[%clk 00:35:57]} {[%emt 00:15:19]} 8. Bg5 {[%clk
00:38:41]} {[%emt 00:15:53]} Bb4+ {[%clk 00:18:24]} {[%emt 00:18:03]} 9. c3
{[%clk 00:35:05]} {[%emt 00:04:06]} Re8+ {[%clk 00:17:35]} {[%emt 00:01:19]} 10.
Be2 {[%clk 00:34:54]} {[%emt 00:00:41]} Bc5 {[%clk 00:13:54]} {[%emt 00:04:11]}
11. O-O {[%clk 00:34:41]} {[%emt 00:00:43]} d6 {[%clk 00:11:27]} {[%emt
00:02:57]} 12. Bc4+ {[%clk 00:32:13]} {[%emt 00:02:58]} Kf8 {[%clk 00:07:53]}
{[%emt 00:04:04]} 13. Nd2 {[%clk 00:31:05]} {[%emt 00:01:37]} Nc6 {[%clk
00:06:29]} {[%emt 00:01:54]} 14. Bxf6 {[%clk 00:17:26]} {[%emt 00:14:10]} Qxf6
{[%clk 00:06:21]} {[%emt 00:00:38]} 15. Ng3 {[%clk 00:16:49]} {[%emt 00:01:07]}
Qxf3 {[%clk 00:06:14]} {[%emt 00:00:37]} 16. Nxf3 {[%clk 00:17:14]} {[%emt
00:00:05]} h6 {[%clk 00:06:08]} {[%emt 00:00:36]} 17. Rad1 {[%clk 00:15:45]}
{[%emt 00:01:59]} Bg4 {[%clk 00:06:20]} {[%emt 00:00:19]} 18. b4 {[%clk
00:15:33]} {[%emt 00:00:42]} Bxf3 {[%emt 00:03:26]} 19. gxf3 {[%clk 00:15:40]}
{[%emt 00:00:21]} Bb6 {[%clk 00:03:03]} {[%emt 00:00:52]} 20. Rxd6 {[%clk
00:15:39]} {[%emt 00:00:31]} Re7 {[%clk 00:01:15]} {[%emt 00:02:19]} 21. Nf5
{[%clk 00:11:21]} {[%emt 00:04:47]} Re5 {[%clk 00:00:42]} {[%emt 00:01:04]} 22.
Nh4 {[%clk 00:11:41]} {[%emt 00:00:09]} Rg5+ {[%clk 00:00:42]} {[%emt
00:00:29]} 23. Kh1 {[%clk 00:12:05]} {[%emt 00:00:07]} Ne5 {[%clk 00:00:46]}
{[%emt 00:00:26]} 24. Bd5 {[%clk 00:05:58]} {[%emt 00:06:37]} Bc7 {[%clk
00:00:40]} {[%emt 00:00:36]} 25. f4 {[%clk 00:03:36]} {[%emt 00:02:52]} Rh5
{[%clk 00:00:56]} {[%emt 00:00:14]} 26. Re6 {[%clk 00:03:09]} {[%emt 00:00:57]}
Ng4 {[%clk 00:00:37]} {[%emt 00:00:49]} 27. Ng6+ {[%clk 00:02:54]} {[%emt
00:00:46]} Kg8 {[%clk 00:00:38]} {[%emt 00:00:28]} 28. Re5+ {[%clk 00:01:17]}
{[%emt 00:02:07]} Kh7 {[%clk 00:00:45]} {[%emt 00:00:24]} 29. Rxh5 {[%clk
00:01:22]} {[%emt 00:00:24]} Kxg6 {[%clk 00:00:55]} {[%emt 00:00:21]} 30. Rh3
{[%clk 00:01:31]} {[%emt 00:00:20]} Bxf4 {[%clk 00:00:49]} {[%emt 00:00:36]} 31.
f3 {[%clk 00:01:09]} {[%emt 00:00:53]} Ne3 {[%clk 00:01:04]} {[%emt 00:00:14]}
32. Be4+ {[%clk 00:00:56]} {[%emt 00:00:43]} Kf6 {[%clk 00:00:53]} {[%emt
00:00:42]} 33. Rg1 {[%clk 00:01:07]} {[%emt 00:00:18]} g5 {[%clk 00:00:53]}
{[%emt 00:00:31]} 34. Rxh6+ {[%clk 00:01:19]} {[%emt 00:00:17]} Ke5 {[%clk
00:00:40]} {[%emt 00:00:43]} 35. h4 {[%clk 00:01:24]} {[%emt 00:00:26]} g4
{[%clk 00:00:50]} {[%emt 00:00:20]} 36. Rh5+ {[%clk 00:01:36]} {[%emt
00:00:17]} Ke6 {[%clk 00:00:52]} {[%emt 00:00:29]} 37. c4 {[%clk 00:01:17]}
{[%emt 00:00:48]} g3 {[%clk 00:00:44]} {[%emt 00:00:39]} 38. Bd5+ {[%clk
00:00:42]} {[%emt 00:01:05]} Kf6 {[%clk 00:00:41]} {[%emt 00:00:33]} 39. Re1
{[%clk 00:00:41]} {[%emt 00:00:30]} Re8 {[%clk 00:00:38]} {[%emt 00:00:33]} 40.
Be4 {[%clk 00:00:41]} {[%emt 00:00:30]} g2+ {[%clk 00:00:36]} {[%emt 00:00:32]}
41. Kg1 {[%clk 00:01:06]} {[%emt 00:00:05]} b6 {[%clk 00:27:08]} {[%emt
00:03:59]} 42. c5 {[%clk 00:28:23]} {[%emt 00:03:12]} Rg8 {[%clk 00:12:31]}
{[%emt 00:15:07]} 43. c6 {[%clk 00:21:24]} {[%emt 00:07:29]} Bg3 {[%clk
00:00:40]} {[%emt 00:12:04]} 44. Rc1 {[%clk 00:21:05]} {[%emt 00:01:06]} Nf1
{[%clk 00:00:38]} {[%emt 00:00:32]} 45. Rg5 {[%clk 00:20:27]} {[%emt 00:01:07]}
Bh2+ {[%clk 00:00:40]} {[%emt 00:00:29]} 46. Kxg2 {[%clk 00:20:47]} {[%emt
00:00:09]} Rd8 {[%clk 00:00:43]} {[%emt 00:00:28]} 47. Kxf1 {[%clk 00:20:43]}
{[%emt 00:00:34]} 1-0

[Event "NJSK 2021 Jeugd B"]
[Site "Almelo, Netherlands"]
[Date "2021.08.05"]
[Round "5.7"]
[White "Goudriaan, Rafael"]
[Black "Franke, Daniel"]
[Result "1-0"]
[TimeControl "90min/40moves + 30min + 30sec/move"]
[WhiteElo "1677"]
[BlackElo "1554"]

1. d4 {[%clk 01:30:59]} {[%emt 00:00:01]} Nf6 {[%clk 01:30:56]} {[%emt
00:00:05]} 2. c4 {[%clk 01:31:24]} {[%emt 00:00:05]} e6 {[%clk 01:31:23]}
{[%emt 00:00:03]} 3. g3 {[%clk 01:31:49]} {[%emt 00:00:04]} d5 {[%clk
01:31:45]} {[%emt 00:00:08]} 4. Bg2 {[%clk 01:32:07]} {[%emt 00:00:11]} dxc4
{[%clk 01:31:50]} {[%emt 00:00:26]} 5. Nf3 {[%clk 01:32:21]} {[%emt 00:00:15]}
Be7 {[%clk 01:30:57]} {[%emt 00:01:23]} 6. O-O {[%clk 01:32:08]} {[%emt
00:00:43]} c6 {[%clk 01:30:52]} {[%emt 00:00:36]} 7. Ne5 {[%clk 01:32:07]}
{[%emt 00:00:31]} Nbd7 {[%clk 01:30:09]} {[%emt 00:01:14]} 8. Nxc4 {[%clk
01:32:01]} {[%emt 00:00:35]} O-O {[%clk 01:30:11]} {[%emt 00:00:27]} 9. e4
{[%clk 01:27:47]} {[%emt 00:04:44]} Nb6 {[%clk 01:29:06]} {[%emt 00:01:36]} 10.
b3 {[%clk 01:25:20]} {[%emt 00:02:54]} Nxc4 {[%clk 01:23:08]} {[%emt 00:06:31]}
11. bxc4 {[%clk 01:25:49]} {[%emt 00:00:02]} Nd7 {[%clk 01:14:02]} {[%emt
00:09:36]} 12. Ba3 {[%clk 01:22:10]} {[%emt 00:04:04]} Rb8 {[%clk 01:03:03]}
{[%emt 00:11:34]} 13. Bxe7 {[%clk 01:17:07]} {[%emt 00:05:31]} Qxe7 {[%clk
01:03:22]} {[%emt 00:00:12]} 14. Nd2 {[%clk 01:15:28]} {[%emt 00:02:06]} b5
{[%clk 00:57:41]} {[%emt 00:06:14]} 15. e5 {[%clk 01:10:04]} {[%emt 00:05:54]}
Bb7 {[%clk 00:57:44]} {[%emt 00:00:28]} 16. a4 {[%clk 01:03:31]} {[%emt
00:07:02]} b4 {[%clk 00:37:06]} {[%emt 00:21:08]} 17. c5 {[%clk 01:01:43]}
{[%emt 00:02:17]} a5 {[%clk 00:23:04]} {[%emt 00:14:33]} 18. Qb3 {[%clk
01:01:21]} {[%emt 00:00:48]} Rfd8 {[%clk 00:17:39]} {[%emt 00:06:00]} 19. Rfd1
{[%clk 00:59:50]} {[%emt 00:01:56]} Ra8 {[%clk 00:15:00]} {[%emt 00:03:13]} 20.
Ne4 {[%clk 00:59:18]} {[%emt 00:00:59]} Nf8 {[%clk 00:14:09]} {[%emt 00:01:25]}
21. Nd6 {[%clk 00:57:40]} {[%emt 00:02:06]} Qc7 {[%clk 00:06:53]} {[%emt
00:07:48]} 22. Rac1 {[%clk 00:57:40]} {[%emt 00:00:28]} Ng6 {[%clk 00:06:46]}
{[%emt 00:00:38]} 23. Qf3 {[%clk 00:57:43]} {[%emt 00:00:27]} Ra6 {[%clk
00:07:10]} {[%emt 00:00:06]} 24. h4 {[%clk 00:57:36]} {[%emt 00:00:36]} Rf8
{[%clk 00:07:08]} {[%emt 00:00:33]} 25. h5 {[%clk 00:57:25]} {[%emt 00:00:41]}
Ne7 {[%clk 00:07:25]} {[%emt 00:00:13]} 26. h6 {[%clk 00:56:45]} {[%emt
00:01:09]} f5 {[%clk 00:06:47]} {[%emt 00:01:09]} 27. hxg7 {[%clk 00:55:56]}
{[%emt 00:01:18]} Kxg7 {[%clk 00:06:54]} {[%emt 00:00:24]} 28. Qh5 {[%clk
00:54:47]} {[%emt 00:01:39]} Ng6 {[%clk 00:04:35]} {[%emt 00:02:49]} 29. f4
{[%clk 00:54:15]} {[%emt 00:01:01]} h6 {[%clk 00:04:18]} {[%emt 00:00:49]} 30.
Kf2 {[%clk 00:54:12]} {[%emt 00:00:30]} Raa8 {[%clk 00:03:33]} {[%emt
00:01:16]} 31. Rh1 {[%clk 00:52:59]} {[%emt 00:01:44]} Rh8 {[%clk 00:03:57]}
{[%emt 00:00:06]} 32. Qf3 {[%clk 00:53:18]} {[%emt 00:00:10]} Ra6 {[%clk
00:02:50]} {[%emt 00:01:39]} 33. Rh5 {[%clk 00:53:14]} {[%emt 00:00:29]} Qd7
{[%clk 00:02:51]} {[%emt 00:00:33]} 34. Qb3 {[%clk 00:53:17]} {[%emt 00:00:27]}
Ra7 {[%clk 00:03:02]} {[%emt 00:00:19]} 35. Rch1 {[%clk 00:53:32]} {[%emt
00:00:14]} Ba8 {[%clk 00:02:32]} {[%emt 00:01:01]} 36. Qf3 {[%clk 00:52:59]}
{[%emt 00:01:00]} Rc7 {[%clk 00:02:26]} {[%emt 00:00:39]} 37. g4 {[%clk
00:53:09]} {[%emt 00:00:18]} fxg4 {[%clk 00:02:09]} {[%emt 00:00:48]} 38. Qxg4
{[%clk 00:53:35]} {[%emt 00:00:04]} Rf8 {[%clk 00:02:11]} {[%emt 00:00:29]} 39.
Rxh6 {[%clk 00:49:35]} {[%emt 00:04:30]} Rxf4+ {[%clk 00:02:18]} {[%emt
00:00:23]} 40. Qxf4 {[%clk 00:50:00]} {[%emt 00:00:03]} Nxf4 {[%clk 00:02:33]}
{[%emt 00:00:16]} 41. Rh7+ {[%clk 00:50:25]} {[%emt 00:00:05]} Kg8 {[%clk
00:27:17]} {[%emt 00:05:47]} 42. Rh8+ {[%clk 01:20:46]} {[%emt 00:00:09]} Kg7
{[%clk 00:27:41]} {[%emt 00:00:06]} 43. R1h7+ {[%clk 01:21:09]} {[%emt
00:00:06]} Kg6 {[%clk 00:27:59]} {[%emt 00:00:12]} 44. Be4+ {[%clk 01:21:29]}
{[%emt 00:00:10]} Kg5 {[%clk 00:28:14]} {[%emt 00:00:16]} 45. Rg8+ {[%clk
01:21:15]} {[%emt 00:00:41]} 1-0

[Event "NJSK 2021 Jeugd B"]
[Site "Almelo, Netherlands"]
[Date "2021.08.05"]
[Round "5.8"]
[White "Arnold, Lorin"]
[Black "Wierenga, Jael"]
[Result "1/2-1/2"]
[TimeControl "90min/40moves + 30min + 30sec/move"]
[WhiteElo "1651"]
[BlackElo "1565"]

1. b3 {[%clk 01:30:57]} {[%emt 00:00:03]} d5 {[%clk 01:30:38]} {[%emt
00:00:22]} 2. Bb2 {[%clk 01:31:20]} {[%emt 00:00:07]} c5 {[%clk 01:30:56]}
{[%emt 00:00:12]} 3. f4 {[%clk 01:31:12]} {[%emt 00:00:38]} Nc6 {[%clk
01:30:49]} {[%emt 00:00:38]} 4. Nf3 {[%clk 01:31:34]} {[%emt 00:00:07]} Nf6
{[%clk 01:30:43]} {[%emt 00:00:35]} 5. g3 {[%clk 01:31:38]} {[%emt 00:00:26]}
Bf5 {[%clk 01:27:14]} {[%emt 00:04:00]} 6. Bg2 {[%clk 01:32:03]} {[%emt
00:00:05]} Qd7 {[%clk 01:27:18]} {[%emt 00:00:25]} 7. O-O {[%clk 01:32:08]}
{[%emt 00:00:25]} e6 {[%clk 01:22:31]} {[%emt 00:05:18]} 8. h3 {[%clk
01:30:48]} {[%emt 00:01:49]} h6 {[%clk 01:21:34]} {[%emt 00:01:28]} 9. d3
{[%clk 01:31:08]} {[%emt 00:00:10]} Bd6 {[%clk 01:13:44]} {[%emt 00:08:20]} 10.
Nbd2 {[%clk 01:31:25]} {[%emt 00:00:13]} d4 {[%clk 01:11:53]} {[%emt 00:02:22]}
11. Qe1 {[%clk 01:31:32]} {[%emt 00:00:22]} Nd5 {[%clk 01:11:00]} {[%emt
00:01:23]} 12. e4 {[%clk 01:30:42]} {[%emt 00:01:20]} dxe3 {[%clk 01:11:08]}
{[%emt 00:00:22]} 13. Nc4 {[%clk 01:31:02]} {[%emt 00:00:10]} Rg8 {[%clk
00:54:40]} {[%emt 00:16:58]} 14. Nxe3 {[%emt 00:01:06]} Nxe3 {[%clk 00:54:44]}
15. Qxe3 {[%clk 01:31:19]} {[%emt 00:00:03]} O-O-O {[%clk 00:43:20]} {[%emt
00:11:54]} 16. Ne5 {[%clk 01:30:19]} {[%emt 00:01:30]} Nxe5 {[%clk 00:43:40]}
{[%emt 00:00:10]} 17. Bxe5 {[%clk 01:30:47]} {[%emt 00:00:03]} Bxe5 {[%clk
00:42:06]} {[%emt 00:02:03]} 18. Qxe5 {[%clk 01:31:14]} {[%emt 00:00:04]} Qd4+
{[%clk 00:42:10]} {[%emt 00:00:26]} 19. Qxd4 {[%clk 01:31:33]} {[%emt
00:00:11]} cxd4 {[%clk 00:41:37]} {[%emt 00:01:03]} 20. Rac1 {[%clk 01:31:30]}
{[%emt 00:00:33]} Kb8 {[%clk 00:41:16]} {[%emt 00:00:50]} 21. Rfd1 {[%clk
01:30:08]} {[%emt 00:01:52]} Rc8 {[%clk 00:39:11]} {[%emt 00:02:35]} 22. g4
{[%clk 01:28:40]} {[%emt 00:01:58]} Bg6 {[%clk 00:37:54]} {[%emt 00:01:48]} 23.
Be4 {[%clk 01:28:24]} {[%emt 00:00:45]} f5 {[%clk 00:25:21]} {[%emt 00:13:04]}
24. Bf3 {[%clk 01:28:37]} {[%emt 00:00:16]} Rc3 {[%clk 00:23:57]} {[%emt
00:01:55]} 25. Re1 {[%clk 01:28:38]} {[%emt 00:00:29]} fxg4 {[%clk 00:19:24]}
{[%emt 00:05:03]} 26. Bxg4 {[%clk 01:27:24]} {[%emt 00:01:43]} Bf5 {[%clk
00:16:53]} {[%emt 00:03:01]} 27. Re5 {[%clk 01:26:35]} {[%emt 00:01:19]} Bxg4
{[%clk 00:16:21]} {[%emt 00:01:03]} 28. hxg4 {[%clk 01:27:02]} {[%emt
00:00:02]} Rgc8 {[%clk 00:16:29]} {[%emt 00:00:22]} 29. Rxe6 {[%clk 01:25:11]}
{[%emt 00:02:21]} Rxd3 {[%clk 00:16:35]} {[%emt 00:00:25]} 30. Rg6 {[%clk
01:20:24]} {[%emt 00:05:17]} Rd2 {[%clk 00:15:14]} {[%emt 00:01:51]} 31. Rxg7
{[%clk 01:18:38]} {[%emt 00:02:16]} d3 {[%clk 00:12:16]} {[%emt 00:03:28]} 32.
c4 {[%clk 01:17:57]} {[%emt 00:01:10]} Re8 {[%clk 00:12:01]} {[%emt 00:00:46]}
33. f5 {[%clk 01:17:26]} {[%emt 00:01:00]} Ree2 {[%clk 00:07:09]} {[%emt
00:05:23]} 34. f6 {[%clk 01:17:31]} {[%emt 00:00:26]} Rg2+ {[%clk 00:02:51]}
{[%emt 00:04:47]} 35. Kh1 {[%clk 01:17:04]} {[%emt 00:00:57]} Rh2+ {[%clk
00:01:24]} {[%emt 00:01:57]} 36. Kg1 {[%clk 01:17:27]} {[%emt 00:00:07]} Rdg2+
{[%clk 00:01:10]} {[%emt 00:00:44]} 37. Kf1 {[%clk 01:17:46]} {[%emt 00:00:11]}
Rf2+ {[%clk 00:01:03]} {[%emt 00:00:37]} 1/2-1/2

[Event "NJSK 2021 Jeugd B"]
[Site "Almelo, Netherlands"]
[Date "2021.08.06"]
[Round "6.1"]
[White "Slagboom, Leandro"]
[Black "Kien, Clovis"]
[Result "1-0"]
[TimeControl "90min/40moves + 30min + 30sec/move"]
[WhiteElo "1996"]
[BlackElo "1683"]

1. c4 {[%clk 01:30:54]} {[%emt 00:00:06]} Nf6 {[%clk 01:30:42]} {[%emt
00:00:18]} 2. Nc3 {[%clk 01:31:18]} {[%emt 00:00:06]} g6 {[%clk 01:30:53]}
{[%emt 00:00:19]} 3. g3 {[%clk 01:31:41]} {[%emt 00:00:07]} Bg7 {[%clk
01:30:58]} {[%emt 00:00:24]} 4. Bg2 {[%clk 01:32:04]} {[%emt 00:00:07]} O-O
{[%clk 01:30:58]} {[%emt 00:00:30]} 5. d4 {[%clk 01:32:22]} {[%emt 00:00:12]}
d6 {[%clk 01:30:58]} {[%emt 00:00:31]} 6. Nf3 {[%clk 01:32:41]} {[%emt
00:00:12]} Nc6 {[%clk 01:30:46]} {[%emt 00:00:41]} 7. O-O {[%clk 01:32:47]}
{[%emt 00:00:23]} e5 {[%clk 01:30:53]} {[%emt 00:00:24]} 8. dxe5 {[%clk
01:33:04]} {[%emt 00:00:13]} dxe5 {[%clk 01:30:43]} {[%emt 00:00:40]} 9. Bg5
{[%clk 01:33:07]} {[%emt 00:00:27]} Be6 {[%clk 01:23:02]} {[%emt 00:08:11]} 10.
Qc1 {[%clk 01:33:28]} {[%emt 00:00:10]} Bxc4 {[%clk 01:16:54]} {[%emt
00:06:39]} 11. Nd2 {[%clk 01:33:01]} {[%emt 00:00:56]} Ba6 {[%clk 01:11:49]}
{[%emt 00:05:35]} 12. Nde4 {[%clk 01:27:26]} {[%emt 00:06:05]} Nd4 {[%clk
01:01:17]} {[%emt 00:11:03]} 13. Re1 {[%clk 01:13:27]} {[%emt 00:14:28]} c6
{[%clk 00:58:39]} {[%emt 00:03:08]} 14. e3 {[%clk 01:11:28]} {[%emt 00:02:28]}
Ne6 {[%clk 00:57:58]} {[%emt 00:01:11]} 15. Bxf6 {[%clk 01:09:32]} {[%emt
00:02:26]} Bxf6 {[%clk 00:58:18]} {[%emt 00:00:09]} 16. Rd1 {[%clk 01:09:43]}
{[%emt 00:00:20]} Nd4 {[%clk 00:56:48]} {[%emt 00:02:01]} 17. exd4 {[%clk
01:08:43]} {[%emt 00:01:30]} exd4 {[%clk 00:57:15]} {[%emt 00:00:03]} 18. Nxf6+
{[%clk 01:08:10]} {[%emt 00:01:02]} Qxf6 {[%clk 00:57:40]} {[%emt 00:00:04]} 19.
Ne4 {[%clk 01:08:14]} {[%emt 00:00:26]} Qg7 {[%clk 00:56:20]} {[%emt 00:01:51]}
20. Nc5 {[%clk 01:06:13]} {[%emt 00:02:30]} Rac8 {[%clk 00:56:35]} {[%emt
00:00:16]} 21. Nxa6 {[%clk 01:06:22]} {[%emt 00:00:21]} bxa6 {[%clk 00:57:03]}
{[%emt 00:00:01]} 22. Qc5 {[%clk 01:06:07]} {[%emt 00:00:45]} Rfd8 {[%clk
00:56:04]} {[%emt 00:01:29]} 23. Rd3 {[%clk 01:05:25]} {[%emt 00:01:12]} f5
{[%clk 00:56:21]} {[%emt 00:00:13]} 24. Rad1 {[%clk 01:05:16]} {[%emt
00:00:38]} Re8 {[%clk 00:55:13]} {[%emt 00:01:37]} 25. Rxd4 {[%clk 01:04:55]}
{[%emt 00:00:53]} 1-0